Cogmind - Beta 10.2 @@@ ROGUE MODE // 2020.12.24 @ 19:09:32 Player: CrossedViper Result: Destroyed by D-53 Grenadier with Mini Grenade Launcher Performance ------------- Evolutions (1) 500 Regions Visited (4) 800 Robots Destroyed (48) 240 Value Destroyed (916) 916 Prototype IDs (5) 100 Alien Tech Used (0) 0 Bonus (-161) -161 TOTAL SCORE: 2395 Bonus ------- High Alert Combat Kills 82 Friendly Fire -243 Cogmind --------- Core Integrity 0/400 Matter 233/300 Energy 26/280 System Corruption 0% Temperature Cool (134) Movement Core (650) Ox12 Location -9/Mines Parts ------- > --- POWER (1) -------- Cooled Ion Engine > --- PROPULSION (3) --- (None) > --- UTILITY (3) ------ Medium Storage Unit Medium Storage Unit Medium Storage Unit > --- WEAPON (2) ------- EM Pulse Cannon > --- INVENTORY (16) --- Cooled Ion Engine Small Storage Unit Advanced Sensor Array Advanced Sensor Array Experimental Sensor Array Improved Terrain Scanner Light Armor Plating EM Pulse Cannon Ion Cannon Assault Rifle Autogun Improved Assault Rifle Mini Grenade Launcher Mining Claw Peak State ------------ > --- POWER ------------ Cooled Ion Engine > --- PROPULSION ------- Light Treads Light Treads Compact Wheel > --- UTILITY ---------- Medium Storage Unit Medium Storage Unit Medium Storage Unit > --- WEAPON ----------- Advanced Beam Cannon Improved Assault Rifle > --- INVENTORY -------- Heavy Ion Engine Cooled Ion Engine Cooled Ion Engine Light Treads Light Treads Small Storage Unit Improved Sensor Array Experimental Sensor Array Medium Laser Assault Rifle Autogun Improved Assault Rifle Rocket Launcher Mining Claw [Rating: 18] Favorites ----------- Power Light Ion Engine Engine Light Ion Engine Propulsion Light Treads Treads Light Treads Leg Aluminum Leg Wheel Compact Wheel Utility Medium Storage Unit Device Experimental Sensor Array Storage Medium Storage Unit Weapon Assault Rifle Energy Gun Medium Laser Energy Cannon Advanced Beam Cannon Ballistic Gun Assault Rifle Launcher Rocket Launcher Build | -11 -10 -10 -9 -9 ------- Run | Scr Mat Min Mat Min Slots Evolved 2 | . . . 2 . Power . | . . . . . Propulsion 1 | . . . 1 . Utility 1 | . . . 1 . Weapon . | . . . . . Parts Attached 41 | . . 7 28 6 Power 6 | . . 2 4 . Engine 6 | . . 2 4 . Core . | . . . . . Reactor . | . . . . . Propulsion 8 | . . . 7 1 Treads 7 | . . . 6 1 Leg . | . . . . . Wheel 1 | . . . 1 . Hover . | . . . . . Flight . | . . . . . Utility 4 | . . 2 2 . Device 1 | . . 1 . . Storage 3 | . . 1 2 . Processor . | . . . . . Hackware . | . . . . . Protection . | . . . . . Artifact . | . . . . . Weapon 23 | . . 3 15 5 Energy Gun 1 | . . 1 . . Energy Cannon 8 | . . . 4 4 Ballistic Gun 6 | . . . 6 . Ballistic Cannon . | . . . . . Launcher 8 | . . 2 5 1 Special Weapon . | . . . . . Impact Weapon . | . . . . . Slashing Weapon . | . . . . . Piercing Weapon . | . . . . . Special Melee Weapon . | . . . . . Unidentified Prototypes 5 | . . 1 4 . Parts Lost 7 | . . 1 . 6 Power 1 | . . 1 . . Propulsion 4 | . . . . 4 Utility . | . . . . . Weapon 2 | . . . . 2 Highest Loss Streak 5 | . . 1 . 5 Average Slot Usage (%) 91 | . 85 85 96 98 Engine 12 | . 14 13 11 11 Treads 11 | . . . 21 20 Leg 13 | . 28 28 . . Wheel 5 | . . . 10 11 Storage 23 | . 14 14 30 33 Energy Gun 1 | . . 2 . . Energy Cannon 3 | . . . 5 11 Ballistic Gun 15 | . 28 16 15 8 Launcher 5 | . . 9 1 2 Naked Turns . | . . . . . Heaviest Build 44 | 13 13 21 39 44 Greatest Support 40 | 20 20 20 40 16 Greatest Overweight (x) 2 | . . 1 2 2 Average Overweight (x) . | . . . 1 2 Largest Inventory Capacity 16 | . 6 10 16 16 Average Capacity 10 | . 6 6 14 16 Most Carried 16 | . 6 6 16 16 Average Carried 9 | . 5 5 12 15 Final Capacity 16 | 6 6 10 16 16 Final Carried 16 | 6 6 6 16 14 Class Distribution -------------------- 100% | Mutant Dominant Class ---------------- Mutant | -10/Materials Mutant | -10/Mines Mutant | -9/Materials Mutant | -9/Mines Resources | -11 -10 -10 -9 -9 ----------- Run | Scr Mat Min Mat Min Matter Collected 1289 | 200 . 327 628 134 Remotely . | . . . . . Salvage Created 1272 | . . 140 969 163 Parts 103 | . . 24 77 2 Haulers Intercepted 5 | . . . 5 . Recyclers Shooed 2 | . . 1 1 . Parts Field Recycled . | . . . . . Retrieved Matter . | . . . . . Parts Self-Destructed . | . . . . . Prevented . | . . . . . Kills | -11 -10 -10 -9 -9 ------- Run | Scr Mat Min Mat Min Combat Hostiles Destroyed 58 | . . 13 24 21 Guns 13 | . . 6 6 1 Cannons 12 | . . . 10 2 AOE 32 | . . 7 8 17 Classes Destroyed 9 | . . 3 5 1 Worker 2 | . . . 2 . Hauler 5 | . . . 5 . Recycler 1 | . . . 1 . Watcher 3 | . . . 3 . Swarmer 22 | . . 9 13 . Grunt 8 | . . 2 6 . Sentry 5 | . . . 5 . Demolisher 1 | . . . . 1 Assembled 22 | . . 2 . 20 Thug 1 | . . . . 1 Best Kill Streak 20 | . . 3 8 20 Combat Bots Only 20 | . . 3 6 20 Max Kills in Single Turn 7 | . . 2 5 7 Gunslinging . | . . . . . Exploded 7 | . . 2 3 7 Melee . | . . . . . Uniques/NPCs Destroyed . | . . . . . Combat | -11 -10 -10 -9 -9 -------- Run | Scr Mat Min Mat Min Damage Taken 2204 | . . 224 1083 897 Core 474 | . . 56 254 164 Absorbed by Shields . | . . . . . Core Remaining (%) 88 | 100 . 77 . . Volleys Fired 144 | . . 38 85 21 Largest 2 | . . 2 2 2 Hottest 126 | . . 70 91 126 Shots Fired 242 | . . 54 160 28 Gun 148 | . . 38 108 2 Cannon 61 | . . . 43 18 Launcher 33 | . . 16 9 8 Special . | . . . . . Kinetic 142 | . . 32 108 2 Thermal 49 | . . 6 43 . Explosive 33 | . . 16 9 8 Electromagnetic 18 | . . . . 18 Robot Hit Streak 19 | . . 5 19 5 Robot Miss Streak 4 | . . 4 4 2 Penetration Max . | . . . . . Secondary Targets 1 | . . . 1 . Max Gunslinging Chain 1 | . . . 1 . Shots Hit Robots 135 | . . 21 100 14 Core Hits 100 | . . 18 43 39 Critical Hits 5 | . . . 5 . Critical Kills 2 | . . . 2 . Critical Parts Destroyed 3 | . . . 3 . Melee Attacks . | . . . . . Impact . | . . . . . Slashing . | . . . . . Piercing . | . . . . . Sneak Attacks . | . . . . . Combat Hostiles . | . . . . . Follow-up Attacks . | . . . . . Damage Inflicted 4453 | . . 643 2231 1579 Guns 1131 | . . 216 902 13 Cannons 938 | . . . 635 303 Explosions 2384 | . . 427 694 1263 Melee . | . . . . . Ramming . | . . . . . Kinetic 1119 | . . 204 902 13 Thermal 647 | . . 12 635 . Explosive 2384 | . . 427 694 1263 Electromagnetic 303 | . . . . 303 Impact . | . . . . . Slashing . | . . . . . Piercing . | . . . . . Highest Corruption . | . . . . . Average Corruption . | . . . . . Corruption Purged . | . . . . . Overload Shots . | . . . . . Overflow Damage 82 | . . 29 41 12 Projectiles . | . . . . . Explosions 82 | . . 29 41 12 Melee . | . . . . . Knockbacks . | . . . . . Impact . | . . . . . Kinetic . | . . . . . Secondary . | . . . . . Self-Inflicted Damage 269 | . . 56 184 29 Shots 8 | . . 3 4 1 Rammed . | . . . . . Targets Rammed . | . . . . . Kicked . | . . . . . Crushed . | . . . . . Highest Temperature 215 | . . 27 215 191 Average Temperature 50 | . . 14 48 76 Received Heat Transfer 315 | . . 54 201 60 Siege Activations . | . . . . . Robots Corrupted 1 | . . . . 1 Combat Hostiles 1 | . . . . 1 Parts Fried . | . . . . . Impact Corruptions . | . . . . . Robots Melted . | . . . . . Combat Hostiles . | . . . . . Parts Melted 3 | . . . 3 . Heat Transferred 1184 | . . 37 1147 . Parts Sabotaged . | . . . . . Parts Stolen . | . . . . . Parts Stripped . | . . . . . Power Chain Reactions . | . . . . . Missiles Intercepted . | . . . . . Alert | -11 -10 -10 -9 -9 ------- Run | Scr Mat Min Mat Min Peak Influence 720 | . 23 203 720 289 Initial 274 | . . 8 39 274 Average 209 | . 15 60 366 275 Maximum Alert Level 3 | . . 1 3 1 Low Security (%) 60 | . 100 91 36 . Level 1 22 | . . 8 24 100 Level 2 14 | . . . 34 . Level 3 2 | . . . 4 . Level 4 . | . . . . . Level 5 . | . . . . . High Security . | . . . . . Max Security . | . . . . . Squads Dispatched 5 | . 2 . 3 . Investigation 2 | . . . 2 . Extermination . | . . . . . Reinforcement 3 | . 2 . 1 . Assault . | . . . . . Garrison . | . . . . . Intercept . | . . . . . Construction Impeded . | . . . . . Haulers Reinforced . | . . . . . Stealth | -11 -10 -10 -9 -9 --------- Run | Scr Mat Min Mat Min Distress Signals 3 | . . . 3 . Communications Jammed . | . . . . . Distress Signals . | . . . . . Times Spotted 70 | . 1 12 36 21 Peak Tracking Total 19 | . 3 3 7 19 Tactical Retreats 4 | . . 1 2 1 Traps | -11 -10 -10 -9 -9 ------- Run | Scr Mat Min Mat Min Traps Triggered 2 | . . . 2 . Indirectly 1 | . . . 1 . Trap Hack Attempts . | . . . . . Triggered . | . . . . . Disarmed . | . . . . . Reprogrammed . | . . . . . Reused . | . . . . . Traps Extracted . | . . . . . Installed . | . . . . . Triggered . | . . . . . Machines | -11 -10 -10 -9 -9 ---------- Run | Scr Mat Min Mat Min Machines Disabled 8 | . . 1 7 . Max in Single Turn 2 | . . 1 2 . Machines Sabotaged . | . . . . . Garrisons Compromised . | . . . . . Overloaded Fab Kills . | . . . . . Fab Network Shutdowns . | . . . . . Hacking | -11 -10 -10 -9 -9 --------- Run | Scr Mat Min Mat Min Machines Accessed 4 | . 1 . 3 . Terminals 4 | . 1 . 3 . Fabricators . | . . . . . Repair Stations . | . . . . . Recycling Units . | . . . . . Scanalyzers . | . . . . . Garrison Access . | . . . . . Total Hacks 8 | . 2 . 6 . Successful 5 | . 1 . 4 . Failed 3 | . 1 . 2 . Catastrophic . | . . . . . Database Lockouts . | . . . . . Manual 6 | . 2 . 4 . Terminals 8 | . 2 . 6 . Fabricators . | . . . . . Repair Stations . | . . . . . Recycling Units . | . . . . . Scanalyzers . | . . . . . Garrison Access . | . . . . . Terminal Hacks 3 | . 1 . 2 . Level Access Points 1 | . . . 1 . Branch Access Points 2 | . 1 . 1 . Fabricator Hacks . | . . . . . Repair Station Hacks . | . . . . . Recycling Unit Hacks . | . . . . . Scanalyzer . | . . . . . Garrison Access Hacks . | . . . . . Unauthorized Hacks 2 | . . . 2 . Terminals 2 | . . . 2 . Track 1 | . . . 1 . Botnet 1 | . . . 1 . Fabricators . | . . . . . Repair Stations . | . . . . . Recycling Units . | . . . . . Scanalyzers . | . . . . . Garrison Access . | . . . . . Data Cores Recovered . | . . . . . Used . | . . . . . Hacking Detections 4 | . 1 . 3 . Full Trace Events . | . . . . . Feedback Events . | . . . . . Feedback Blocked . | . . . . . Robot Schematics Acquired . | . . . . . Robots Built . | . . . . . Matter . | . . . . . Time . | . . . . . Total Robot Build Rating . | . . . . . Part Schematics Acquired . | . . . . . Parts Built . | . . . . . Matter . | . . . . . Time . | . . . . . Total Part Build Rating . | . . . . . Parts Repaired . | . . . . . Time . | . . . . . Parts Recycled . | . . . . . Recycled Matter . | . . . . . Retrieved Matter . | . . . . . Retrieved Components . | . . . . . Parts Scanalyzed . | . . . . . Part Schematics Acquired . | . . . . . Parts Damaged . | . . . . . Bothacking | -11 -10 -10 -9 -9 ------------ Run | Scr Mat Min Mat Min Used RIF Installer . | . . . . . Robots Hacked . | . . . . . Non-combat . | . . . . . Combat . | . . . . . Robot Hacks Applied . | . . . . . Relay Couplers Released . | . . . . . Robots Rewired . | . . . . . Allies Hacked . | . . . . . Hacks Repelled . | . . . . . Allies | -11 -10 -10 -9 -9 -------- Run | Scr Mat Min Mat Min Total Allies 1 | . . . . 1 Largest Group . | . . . . . Highest-Rated Group . | . . . . . Highest-Rated Ally . | . . . . . Total Orders . | . . . . . Ally Attacks . | . . . . . Total Damage . | . . . . . Kills . | . . . . . Allies Corrupted . | . . . . . Allies Melted . | . . . . . Intel | -11 -10 -10 -9 -9 ------- Run | Scr Mat Min Mat Min Robot Analysis Total . | . . . . . Derelict Logs Recovered 2 | . . 2 . . Drone Launches . | . . . . . Drone Recoveries . | . . . . . Exploration | -11 -10 -10 -9 -9 ------------- Run | Scr Mat Min Mat Min Turns Passed 2246 | . 66 1021 980 179 Spaces Moved 1406 | 1 54 749 508 94 Core . | . . . . . Treads 113 | . . . 113 . Legs 804 | 1 54 749 . . Wheels 489 | . . . 395 94 Hover . | . . . . . Flight . | . . . . . Fastest Speed 110 | 120 120 120 110 120 Average Speed 124 | 120 120 121 130 120 Slowest Speed 180 | 120 120 150 180 120 Overloaded Moves . | . . . . . Propulsion Burnouts . | . . . . . Robots Hopped . | . . . . . Cave-ins Triggered . | . . . . . Exploration Rate (%) 40 | 2 14 98 56 33 Regions Visited 4 Branch Regions 2 Pre-discovered Areas 2 | . . 2 . . Known Exits Taken 2 | . 1 . 1 . Unknown Exits Taken 2 | 1 . 1 . . Scrap Searched 2 | . . 1 . 1 Spaces Dug 22 | . . . 22 . Terrain Destroyed 218 | . . 114 84 20 Melee . | . . . . . Projectile 1 | . . . 1 . AOE 217 | . . 114 83 20 Terrain Rammed . | . . . . . Walls Destroyed . | . . . . . Machines Disabled . | . . . . . Actions | -11 -10 -10 -9 -9 --------- Run | Scr Mat Min Mat Min Total 1660 | . 55 805 669 131 Wait 23 | . . 8 5 10 Move 1402 | . 53 748 507 94 Hop . | . . . . . Pick Up 25 | . 1 1 23 . Fast Attach 9 | . . 3 6 . Attach 7 | . . . 5 2 Detach 1 | . . 1 . . Swap 25 | . . 4 17 4 Drop 24 | . 1 2 21 . Fire 144 | . . 38 85 21 Melee . | . . . . . Ram . | . . . . . Kick . | . . . . . Crush . | . . . . . Escape Stasis . | . . . . . Rewire . | . . . . . Trap . | . . . . . Miscellaneous . | . . . . . Route ------- -11/Scrapyard -10/Materials (discovered 2 exits: *Min x2) -10/Mines (discovered 3 exits: *Mat x2 / [*Exi]) -9/Materials (discovered 5 exits: *Mat x3 / *Min x2) -9/Mines History --------- Turn | Location | Event 1 | -11/Scrapyard | Discovered new exit (range 0) 1 | -11/Scrapyard | Entered Materials 1 | -10/Materials | Discovered new exit (range 7) 15 | -10/Materials | Identified exit to Mines 67 | -10/Materials | Entered Mines 68 | -10/Mines | Excavation squad dispatched 68 | -10/Mines | A large section of the Mines collapsed 74 | -10/Mines | Received a Rocket Launcher from a helpful Derelict 105 | -10/Mines | Learned Materials stockpile data 165 | -10/Mines | Discovered new exit (range 15) 179 | -10/Mines | Learned location of Storage (-7) 224 | -10/Mines | Found a damaged Exp. Sensor Array with a note attached 226 | -10/Mines | Found Prototype Device 226 | -10/Mines | Identified Exp. Sensor Array 309 | -10/Mines | Build established: Mutant 361 | -10/Mines | Discovered new exit (range 12) 1023 | -10/Mines | Deemed a non-threat by the Exiles lab entrance 1023 | -10/Mines | Discovered new exit (range 5) 1088 | -10/Mines | Entered Materials 1088 | -9/Materials | Evolved 2 slots: Propulsion x1, Utility x1 1687 | -9/Materials | Identified exit to Materials 1807 | -9/Materials | Identified exit to Mines 1847 | -9/Materials | Core integrity fell below 50% 2068 | -9/Materials | Entered Mines 2119 | -9/Mines | Received a Mining Laser from a helpful Derelict 2174 | -9/Mines | Assembled infested the area 2179 | -9/Mines | Assisted by a Guerilla fighting off Assembled 2194 | -9/Mines | Core integrity fell below 20% 2225 | -9/Mines | Destroyed 20 combat bots 2247 | -9/Mines | Destroyed by D-53 Grenadier with Mini Grenade Launcher Last Messages --------------- 02188_ as-11048 destroyed. 02192_ Destroyed Asb. Hover Unit. 02192_ as-95332 destroyed. 02197_ as-16631 destroyed. 02200_ as-46138 destroyed. 02204_ as-31017 destroyed. 02209_ Acquired 12 matter. 02210_ Acquired 42 matter. 02220_ R-06 Scavenger collects Armor Integrity Analyzer. 02226_ C-30 ARC bursts open, deploying its payload. 02226_ D-53 Grenadier unfolds itself. 02230_ D-53 Grenadier IFF system glitched. 02230_ R-06 Scavenger destroyed. 02232_ Destroyed Lgt. Deuterium Engine. 02232_ Lgt. Treads destroyed. 02232_ EM Pulse Cannon destroyed. 02233_ D-53 Grenadier system terminally corrupted. 02243_ Lgt. Treads destroyed. 02243_ EM Pulse Cannon destroyed. 02243_ Com. Wheel destroyed. Map ----- +----------------------------------------------------+ | ????????????????????????????????????# | | ????????????????????????????????????# | | ????????????????????????????????????# | | ????????????????????????????????????# # | | ????????????????????????????????????# #?? | | ?????????????????????????????????#### #?? | | ?????????????????????????????????# ! #?? | | ??????????????????? ????????????#!## #?? | | ?????????????????# ????????????# ## ### | | ????????????????## ????????????#=## | | ???????????? ### #???????????#!## | | ??????????? ##?????????# ###### | | ?????????? #???????### ####?# | | ??????????" #??????## ### | | ?????????? % #???#### ## | | ???????????# #??## | | ????????????# #### #### | | ???????????## ## ##??# | | ???????#?### ## ##??# | | ???????#;# %! #??# | | ???????## % !%= #??? | | ???????# d=% ### ##??? | | ???????# ######???? | | ????????# #???????# | | ?????????### #??????## | | ???????????## @ ##??????# | | ????????????# ###???????# | | ????????????# #####?????????# | | ????????????# ##?????????????## | | ???????????# ##???????????????? | | ???????????# ####????????????????? | | ???????????## ## ##???????????????????? | | ????????????####?####????????????????????? | | ?????????????????????????????????????????? | | | | | | | | | | | | | | | | | | | | | | | | | | | | | | | | | +----------------------------------------------------+ Best States ------------- Heat Dissipation 28 Energy Generation 14 Energy Capacity 280 Matter Stores 300 Matter Capacity 300 Sight Range 16 Robot Scan Range 30 Terrain Scan Density 10 Evasion (%) 40 Recoil Reduction 2 Item Schematics ----------------- None Robot Schematics ------------------ None Fabricated ------------ Nothing Alien Tech Used ----------------- None Achievements -------------- None Challenges ------------ None Game ------ Seed MobileAerolevComputer Manual? 0 Play Time 00:15:52 Cumulative 180.6 hours Start 2020.12.24 @ 18:55:33 End 2020.12.24 @ 19:09:32 Sessions 1 Manual Loads 0 Difficulty Rogue Special Mode None Game No. 176 Rogue 169 Adventurer 0 Explorer 7 Win Type - Total 3 Types 0/0/3/0/0/0/0/0/0 Lore% 62 Gallery% 89 Achievement% 65 Wizard Run 0 Options --------- ASCII 0 Keyboard 0 Movement Mouse Keybinds 0 Fullscreen 1 Font 18/X11 Map View 76x50 Tactical HUD 1 Map Filters NONE Filters NONE Steam 1 RUN: d9fd773b-6ead-482c-a8e8-dd556a1959cb